bitfinex/quotes_BTCUSD_20250218
["timestamp","ask_amount","ask_price","bid_price","bid_amount"]
[1739920606893,0.1570012,95644.0,95638.0,0.007]
[1739920607095,0.0001702,95644.0,95636.0,0.3246]
[1739920607474,0.0001702,95644.0,95636.0,0.3316]
[1739920607618,0.0163887,95643.0,95636.0,0.3316]
[1739920609611,0.0163887,95643.0,95636.0,0.3246]
[1739920609815,0.0163887,95643.0,95636.0,0.3316]
[1739920611855,0.0165589,95643.0,95636.0,0.3316]
[1739920612059,0.0001702,95643.0,95636.0,0.3316]
[1739920612412,0.0001702,95643.0,95636.0,0.488444]
[1739920613886,0.0001702,95643.0,95638.0,0.15684]
[1739920614912,0.0001702,95643.0,95639.0,0.156839]
[1739920615562,0.01655892,95643.0,95639.0,0.156839]
[1739920615967,0.01655892,95643.0,95637.0,0.00104551]
[1739920616176,0.01655892,95643.0,95637.0,0.156841]
[1739920616389,0.01655892,95643.0,95639.0,0.02115405]
[1739920617383,0.01655892,95643.0,95640.0,0.00785685]
[1739920618191,0.01655892,95643.0,95642.0,0.235734]
[1739920618416,0.01655892,95643.0,95642.0,0.36123765]
[1739920620159,0.01655892,95643.0,95642.0,0.3690945]
[1739920621047,0.01655892,95643.0,95642.0,0.3760945]
[1739920622327,0.01655892,95643.0,95642.0,0.7006945]
[1739920623122,0.0001702,95643.0,95642.0,0.7006945]
[1739920626109,0.01655795,95643.0,95642.0,0.7006945]
[1739920629883,0.01655795,95643.0,95642.0,0.7459945]
[1739920631704,0.0001702,95643.0,95642.0,0.7459945]
[1739920634187,0.0001702,95643.0,95642.0,0.77741227]
[1739920635256,0.0001702,95643.0,95642.0,0.77775267]
[1739920635628,0.0001702,95643.0,95642.0,0.7463349]
[1739920641950,0.0165579,95643.0,95642.0,0.7463349]
[1739920643209,0.0001702,95643.0,95642.0,0.7463349]
[1739920644844,0.0001702,95643.0,95642.0,0.7393349]
[1739920645363,0.0001702,95643.0,95642.0,0.7463349]
[1739920647361,0.01655705,95643.0,95642.0,0.7463349]
[1739920648830,0.01655705,95643.0,95642.0,0.7393349]
[1739920649328,0.01655705,95643.0,95642.0,0.7463349]
[1739920649471,0.01655705,95643.0,95642.0,0.7393349]
[1739920650091,0.01655705,95643.0,95642.0,0.7463349]
[1739920653197,0.0001702,95643.0,95642.0,0.7463349]
[1739920656199,0.01655685,95643.0,95642.0,0.7463349]
[1739920662666,0.0001702,95643.0,95642.0,0.7463349]
[1739920665951,0.01655695,95643.0,95642.0,0.7463349]
[1739920673072,0.10074976,95666.0,95642.0,0.5895009]
[1739920673249,0.15793001,95679.0,95644.0,0.023]
[1739920673449,0.156801,95663.0,95655.0,0.156812]
[1739920673898,0.156799,95664.0,95656.0,0.156811]
[1739920674994,0.1568,95664.0,95655.0,0.163813]
[1739920675201,0.1568,95664.0,95655.0,0.156813]
[1739920675520,0.1568,95664.0,95656.0,0.007]
[1739920675699,0.05748,95663.0,95656.0,0.01485829]
[1739920676022,0.1568,95664.0,95656.0,0.01485829]
[1739920676215,0.01638653,95662.0,95656.0,0.01485829]
[1739920676396,0.01638653,95662.0,95656.0,0.17166929]
[1739920676766,0.01638653,95662.0,95657.0,0.00785829]
[1739920677971,0.01638653,95662.0,95658.0,0.02084221]
[1739920678173,0.01638653,95662.0,95657.0,0.00785829]
[1739920678377,0.01638653,95662.0,95658.0,0.00785829]
[1739920680009,0.01638653,95662.0,95659.0,0.00785829]
[1739920681387,0.01638653,95662.0,95660.0,0.00785829]
[1739920682451,0.01638653,95662.0,95661.0,0.00785829]
[1739920682691,0.01699497,95662.0,95661.0,0.00785829]
[1739920683154,0.00060844,95662.0,95661.0,0.00785829]
[1739920683878,0.00060844,95662.0,95661.0,0.18766129]
[1739920684074,0.00060844,95662.0,95661.0,0.37281016]
[1739920684274,0.00060844,95662.0,95661.0,0.37176494]
[1739920684431,0.00060844,95662.0,95661.0,0.36390665]
[1739920684662,0.00060844,95662.0,95661.0,0.37090665]
[1739920684869,0.00060844,95662.0,95661.0,0.68850665]
[1739920685272,0.00060844,95662.0,95661.0,0.70336486]
[1739920686115,0.01699309,95662.0,95661.0,0.70336486]
[1739920687783,0.01699309,95662.0,95661.0,0.69636486]
[1739920688481,0.01699309,95662.0,95661.0,0.70336486]
[1739920688733,0.01699309,95662.0,95661.0,0.69636486]
[1739920689113,0.01699309,95662.0,95661.0,0.89536486]
[1739920689813,0.01699309,95662.0,95661.0,1.47374196]
[1739920690064,0.01699309,95662.0,95661.0,1.44806486]
[1739920690272,0.01699309,95662.0,95661.0,1.48073877]
[1739920690484,0.01699309,95662.0,95661.0,1.47373877]
[1739920690684,0.01699309,95662.0,95661.0,1.44806486]
[1739920693266,0.00060844,95662.0,95661.0,1.44806486]
[1739920695867,0.00060844,95662.0,95661.0,1.29806486]
[1739920696103,0.0169911,95662.0,95661.0,1.29806486]
[1739920696393,0.0169911,95662.0,95661.0,1.19346486]
[1739920696624,0.0169911,95662.0,95661.0,1.21646486]
[1739920698981,0.0169911,95662.0,95661.0,1.36646486]
[1739920699204,0.0169911,95662.0,95661.0,1.44636486]
[1739920701291,0.0812,95695.0,95661.0,1.44636486]
[1739920701292,0.156756,95690.0,95682.0,0.156768]
[1739920701489,0.156756,95690.0,95683.0,0.156767]
[1739920701748,0.209004,95692.0,95680.0,0.209029]
[1739920701749,0.156757,95689.0,95682.0,0.156769]
[1739920702023,0.01638264,95689.0,95682.0,0.156769]
[1739920702216,0.19698796,95689.0,95681.0,0.15677]
[1739920702345,0.15676,95688.0,95680.0,0.156771]
[1739920703401,0.15676,95688.0,95683.0,0.007]
[1739920703641,0.05744,95687.0,95680.0,0.156771]
[1739920703875,0.15676,95688.0,95680.0,0.156771]
[1739920704124,0.15676,95688.0,95680.0,0.163771]
[1739920704558,0.15676,95688.0,95680.0,0.156771]
[1739920705032,0.17825864,95690.0,95680.0,0.156771]
[1739920705453,0.02331355,95690.0,95682.0,0.156768]
[1739920705655,0.02331355,95690.0,95683.0,0.156767]
[1739920705885,0.05253366,95695.0,95680.0,0.209028]
[1739920706121,0.01638257,95689.0,95681.0,0.15677]
[1739920706351,0.01638257,95689.0,95682.0,0.156769]
[1739920706564,0.01638257,95689.0,95686.0,0.156761]
[1739920707124,0.01638257,95689.0,95688.0,0.156759]
[1739920707677,0.01638257,95689.0,95686.0,0.209016]
[1739920707812,0.01638257,95689.0,95687.0,0.15676]
[1739920708056,0.01638257,95689.0,95686.0,0.216016]
[1739920708269,0.01638257,95689.0,95686.0,0.163761]
[1739920708472,0.01638257,95689.0,95686.0,0.007]
[1739920708672,0.01638257,95689.0,95687.0,0.156761]
[1739920709285,0.01638257,95689.0,95684.0,0.209019]
[1739920709286,0.01638257,95689.0,95686.0,0.156762]
[1739920709498,0.01638257,95689.0,95688.0,0.007]
[1739920710900,0.01638257,95689.0,95686.0,0.156762]
[1739920711115,0.01638257,95689.0,95687.0,0.15676]
[1739920711899,0.01638257,95689.0,95686.0,0.3316]
[1739920712754,0.01638257,95689.0,95686.0,0.3246]
[1739920712985,0.023793,95690.0,95687.0,0.007]
[1739920713270,0.156748,95695.0,95687.0,0.007]
[1739920713482,0.156748,95695.0,95686.0,0.3246]
[1739920713650,0.156748,95695.0,95686.0,0.3316]
[1739920714154,0.156748,95695.0,95687.0,0.007]
[1739920716564,0.01638194,95693.0,95686.0,0.3246]
[1739920716985,0.01638194,95693.0,95686.0,0.3316]
[1739920717173,0.01638194,95693.0,95686.0,0.3246]
[1739920717535,0.01638194,95693.0,95687.0,0.007]
[1739920717915,0.01638194,95693.0,95686.0,0.3246]
[1739920717916,0.01638194,95693.0,95686.0,0.3249404]
[1739920718107,0.156754,95692.0,95686.0,0.3249404]
[1739920718281,0.01638194,95693.0,95686.0,0.3249404]
[1739920719963,0.01638194,95693.0,95686.0,0.3319404]
[1739920720764,0.01638194,95693.0,95686.0,0.3249404]
[1739920720950,0.01638194,95693.0,95686.0,0.3319404]
[1739920722360,0.01638194,95693.0,95686.0,0.4103404]
[1739920723015,0.01638194,95693.0,95686.0,0.4181753]
[1739920723228,0.02321646,95695.0,95686.0,0.4181753]
[1739920723475,0.17996546,95695.0,95689.0,0.00012]
[1739920724020,0.02321646,95695.0,95689.0,0.00012]
[1739920724444,0.17996446,95695.0,95689.0,0.00012]
[1739920724673,0.02321646,95695.0,95689.0,0.00712]
[1739920724819,0.156749,95694.0,95689.0,0.00712]
[1739920725678,0.17996446,95695.0,95689.0,0.00712]
[1739920725895,0.17996446,95695.0,95689.0,0.00012]
[1739920726158,0.0163823,95694.0,95689.0,0.00012]
[1739920726501,0.1731313,95694.0,95689.0,0.00012]
[1739920726704,0.1731313,95694.0,95689.0,0.00712]
[1739920727143,0.1731313,95694.0,95689.0,0.0149549]
[1739920727499,0.0163823,95694.0,95689.0,0.0149549]
[1739920728333,0.1731323,95694.0,95689.0,0.0149549]
[1739920728490,0.1731323,95694.0,95689.0,0.00712]
[1739920729314,0.1731323,95694.0,95690.0,0.3246]
[1739920729912,0.1731323,95694.0,95690.0,0.33243747]
[1739920730475,0.1731323,95694.0,95690.0,0.3325246]
[1739920730936,0.156751,95693.0,95690.0,0.3395246]
[1739920731570,0.1731323,95694.0,95690.0,0.3395246]
[1739920731749,0.1731323,95694.0,95690.0,0.33168713]
[1739920732786,0.0163823,95694.0,95690.0,0.32468713]
[1739920732989,0.0163823,95694.0,95690.0,0.33168713]
[1739920733228,0.0001702,95695.0,95690.0,0.32468713]
[1739920733440,0.0301742,95695.0,95690.0,0.32468713]
[1739920733658,0.0301742,95695.0,95690.0,0.33168713]
[1739920733842,0.15675,95694.0,95690.0,0.33168713]
[1739920734249,0.15675,95694.0,95690.0,0.32468713]
[1739920734826,0.156752,95693.0,95690.0,0.33168713]
[1739920735069,0.03008858,95695.0,95690.0,0.33168713]
[1739920735296,0.156749,95694.0,95690.0,0.33168713]
[1739920735925,0.156749,95694.0,95690.0,0.32468713]
[1739920736247,0.17313153,95694.0,95690.0,0.33168713]
[1739920737560,0.207,95713.0,95690.0,0.33168713]
[1739920737767,0.156752,95693.0,95690.0,0.33168713]
[1739920738378,0.15675,95694.0,95690.0,0.33168713]
[1739920738575,0.156751,95693.0,95690.0,0.33168713]
[1739920739029,0.156751,95693.0,95690.0,0.32468713]
[1739920739452,0.156751,95693.0,95690.0,0.33168713]
[1739920740051,0.17313359,95693.0,95690.0,0.33168713]
[1739920740269,0.01638259,95693.0,95690.0,0.33168713]
[1739920740688,0.17313359,95693.0,95690.0,0.33168713]
[1739920741554,0.156752,95692.0,95691.0,0.0752]
[1739920741920,0.01638259,95693.0,95691.0,0.0752]
[1739920742562,0.156752,95692.0,95691.0,0.0752]
[1739920742950,0.156752,95692.0,95691.0,0.0822]
[1739920743158,0.156752,95692.0,95691.0,0.0752]
[1739920743390,0.156752,95692.0,95690.0,0.32468713]
[1739920743588,0.16310254,95695.0,95691.0,0.007]
[1739920743796,0.156752,95692.0,95690.0,0.32468713]
[1739920744617,0.156752,95692.0,95691.0,0.007]
[1739920746279,0.156752,95692.0,95690.0,0.32468713]
[1739920746280,0.23062631,95692.0,95690.0,0.32468713]
[1739920746487,0.17313489,95692.0,95690.0,0.32468713]
[1739920746980,0.01638289,95692.0,95690.0,0.33168713]
[1739920747217,0.156754,95691.0,95690.0,0.00708713]
[1739920749580,0.156754,95691.0,95690.0,8.713e-05]
[1739920750292,0.156754,95691.0,95690.0,0.00708713]
[1739920755067,0.156754,95691.0,95690.0,0.00742753]
[1739920756202,0.17313757,95691.0,95690.0,0.00742753]
[1739920763083,0.156754,95691.0,95690.0,0.00742753]
[1739920766309,0.17313754,95691.0,95690.0,0.00742753]
[1739920767376,0.24973038,95691.0,95690.0,0.00742753]
[1739920767588,0.38013754,95691.0,95690.0,0.00742753]
[1739920768424,0.38013754,95691.0,95690.0,0.00042753]
[1739920768634,0.42823754,95691.0,95690.0,0.00042753]
[1739920768844,0.42823754,95691.0,95690.0,0.00742753]
[1739920769036,0.42823754,95691.0,95690.0,0.00042753]
[1739920769181,0.42823754,95691.0,95690.0,0.00742753]
[1739920769590,0.43597856,95691.0,95690.0,0.00742753]
[1739920775734,0.33087856,95691.0,95690.0,0.00742753]
[1739920775953,0.00774102,95691.0,95690.0,0.00742753]
[1739920776162,0.16449502,95691.0,95690.0,0.00742753]
[1739920776574,0.16449502,95691.0,95690.0,0.00042753]
[1739920776798,0.16449502,95691.0,95690.0,0.00742753]
[1739920784603,0.16449502,95691.0,95690.0,0.00742753]
[1739920789857,0.16437502,95691.0,95690.0,0.00742753]
[1739920792457,0.31437502,95691.0,95690.0,0.00942753]
[1739920802554,0.31454522,95691.0,95690.0,0.00942753]
[1739920805041,0.1569242,95691.0,95690.0,0.00942753]
[1739920805407,0.1569242,95691.0,95690.0,0.08962753]
[1739920808418,0.1569242,95691.0,95690.0,0.13662753]
[1739920816080,0.208999,95694.0,95691.0,0.0821]
[1739920816213,0.1843021,95693.0,95691.0,0.0821]
[1739920816637,0.156752,95692.0,95691.0,0.0821]
[1739920817514,0.156752,95692.0,95691.0,0.0891]
[1739920817833,0.156752,95692.0,95691.0,0.0821]
[1739920818254,0.156752,95692.0,95691.0,0.0891]
[1739920818541,0.156752,95692.0,95691.0,0.0821]
[1739920818779,0.156752,95692.0,95691.0,0.0891]
[1739920825100,0.156752,95692.0,95691.0,0.08925816]
[1739920826638,0.156752,95692.0,95691.0,0.08959856]
[1739920832049,0.15919627,95692.0,95691.0,0.08959856]
[1739920834815,0.00244427,95692.0,95691.0,0.41419856]
[1739920835192,0.02958994,95695.0,95692.0,0.0771]
[1739920835394,0.02958994,95695.0,95693.0,0.08374464]
[1739920836223,0.00199922,95694.0,95693.0,0.08374464]
[1739920836599,0.156751,95693.0,95692.0,0.0771]
[1739920836948,0.15875007,95693.0,95692.0,0.0771]
[1739920837387,0.15875007,95693.0,95692.0,0.0841]
[1739920837781,0.15875007,95693.0,95692.0,0.0771]
[1739920837990,0.15875007,95693.0,95692.0,0.0841]
[1739920840478,0.00199907,95693.0,95692.0,0.0841]
[1739920840716,0.156751,95693.0,95692.0,0.0841]
[1739920840903,0.15875533,95693.0,95692.0,0.0841]
[1739920845208,0.15875533,95693.0,95692.0,0.4087]
[1739920847239,0.15875533,95693.0,95692.0,0.42823835]
[1739920849989,0.15892553,95693.0,95692.0,0.42823835]
[1739920853300,0.15892553,95693.0,95692.0,0.42823835]
[1739920853512,0.00217453,95693.0,95692.0,0.42823835]
[1739920853937,0.15892553,95693.0,95692.0,0.42823835]
[1739920859187,0.13335518,95695.0,95692.0,0.42823835]
[1739920859422,0.15866427,95693.0,95692.0,0.42823835]
[1739920859637,0.156751,95693.0,95692.0,0.42823835]
[1739920859852,0.15866427,95693.0,95692.0,0.42823835]
[1739920861996,0.15866427,95693.0,95692.0,0.42857875]
[1739920862507,0.03103896,95695.0,95692.0,0.42857875]
[1739920862946,0.00182638,95694.0,95692.0,0.42857875]
[1739920863153,0.0001702,95696.0,95692.0,0.42857875]
[1739920863154,0.156749,95695.0,95692.0,0.42857875]
[1739920863372,0.00182631,95693.0,95692.0,0.42157875]
[1739920863577,0.156749,95694.0,95692.0,0.42857875]
[1739920864002,0.156749,95694.0,95693.0,0.01953835]
[1739920865296,0.03195671,95695.0,95693.0,0.01953835]
[1739920865550,0.18870471,95695.0,95693.0,0.02653835]
[1739920865810,0.156748,95695.0,95693.0,0.02653835]
[1739920866779,0.00182638,95694.0,95693.0,0.02653835]
[1739920867015,0.00182638,95694.0,95693.0,0.007]
[1739920867258,0.00182638,95694.0,95692.0,0.4020404]
[1739920867491,0.00182638,95694.0,95693.0,0.007]
[1739920867853,0.00182638,95694.0,95692.0,0.4020404]
[1739920868072,0.15857538,95694.0,95693.0,0.007]
[1739920868278,0.00182638,95694.0,95693.0,0.007]
[1739920869443,0.15857538,95694.0,95693.0,0.007]
[1739920871199,0.15857538,95694.0,95693.0,0.17224464]
[1739920871200,0.00182638,95694.0,95693.0,0.17224464]
[1739920871415,0.00182638,95694.0,95693.0,0.22184464]
[1739920871622,0.03134964,95695.0,95693.0,0.22184464]
[1739920871909,0.00182642,95694.0,95693.0,0.22184464]
[1739920873420,0.0001702,95695.0,95693.0,0.22184464]
[1739920873630,0.00182645,95694.0,95693.0,0.22184464]
[1739920874327,0.00182645,95694.0,95693.0,0.21484464]
[1739920874646,0.00182645,95694.0,95693.0,0.22184464]
[1739920875072,0.00182645,95694.0,95693.0,0.54644464]
[1739920875282,0.00182645,95694.0,95693.0,0.53944464]
[1739920875913,0.00182645,95694.0,95693.0,0.54644464]
[1739920878647,0.03181554,95695.0,95693.0,0.54644464]
[1739920879208,0.00182647,95694.0,95693.0,0.54644464]
[1739920880224,0.00182647,95694.0,95693.0,0.53944464]
[1739920880592,0.00182647,95694.0,95693.0,0.54644464]
[1739920880767,0.00182647,95694.0,95693.0,0.53944464]
[1739920881177,0.00182647,95694.0,95693.0,0.54644464]
[1739920885328,0.023,95747.0,95693.0,0.54644464]
[1739920885534,0.156743,95698.0,95693.0,0.54644464]
[1739920885737,0.00174374,95697.0,95693.0,0.54644464]
[1739920886363,0.156741,95699.0,95693.0,0.54644464]
[1739920886569,0.00174382,95698.0,95693.0,0.53944464]
[1739920886989,0.15848682,95698.0,95693.0,0.54644464]
[1739920887663,0.15848682,95698.0,95693.0,0.53944464]
[1739920888591,0.15848682,95698.0,95693.0,0.54644464]
[1739920891769,0.00174382,95698.0,95693.0,0.54644464]
[1739920892932,0.15848682,95698.0,95693.0,0.54644464]
[1739920894492,0.00174382,95698.0,95693.0,0.54644464]
[1739920894878,0.156741,95699.0,95693.0,0.54644464]
[1739920895085,0.00174373,95697.0,95693.0,0.54644464]
[1739920895297,0.00174381,95698.0,95693.0,0.54644464]
[1739920895501,0.00174365,95696.0,95693.0,0.54644464]
[1739920895708,0.00174373,95697.0,95693.0,0.54644464]
[1739920895921,0.00174358,95695.0,95693.0,0.54644464]
[1739920896129,0.156743,95698.0,95693.0,0.54644464]
[1739920896355,0.0017435,95694.0,95693.0,0.54644464]
[1739920896571,0.156741,95699.0,95693.0,0.53978504]
[1739920896793,0.0001702,95698.0,95693.0,0.53978504]
[1739920897007,0.00191401,95698.0,95693.0,0.54678504]
[1739920897192,0.00191401,95698.0,95693.0,0.53978504]
[1739920897425,0.00191401,95698.0,95693.0,0.54678504]
[1739920897834,0.00191401,95698.0,95693.0,0.53978504]
[1739920898030,0.00191401,95698.0,95693.0,0.54678504]
[1739920898460,0.15865701,95698.0,95693.0,0.54678504]
[1739920899074,0.00191401,95698.0,95693.0,0.54678504]
[1739920901585,0.15,95708.0,95693.0,0.54678504]
[1739920901786,0.00166447,95697.0,95693.0,0.54678504]
[1739920902066,0.156739,95701.0,95693.0,0.54678504]
[1739920902441,0.0016647,95700.0,95693.0,0.54678504]
[1739920902854,0.0016647,95700.0,95693.0,0.53978504]
[1739920903080,0.0016647,95700.0,95693.0,0.54678504]
[1739920903479,0.0016647,95700.0,95693.0,0.53978504]
[1739920903707,0.0016647,95700.0,95693.0,0.54678504]
[1739920904732,0.1584047,95700.0,95693.0,0.54678504]
[1739920904956,0.15674,95700.0,95693.0,0.54678504]
[1739920905166,0.00166462,95699.0,95693.0,0.54678504]
[1739920905586,0.15674,95700.0,95693.0,0.54678504]
[1739920905811,0.00166462,95699.0,95693.0,0.54678504]
[1739920906440,0.00166462,95699.0,95693.0,0.53978504]
[1739920906616,0.00166462,95699.0,95693.0,0.54678504]
[1739920908396,0.00166462,95699.0,95693.0,0.70353504]
[1739920908829,0.156738,95701.0,95693.0,0.70353504]
[1739920909233,0.0016647,95700.0,95693.0,0.70353504]
[1739920909452,0.1584037,95700.0,95693.0,0.70353504]
[1739920909935,0.0016647,95700.0,95693.0,0.53978504]
[1739920910347,0.0001702,95699.0,95693.0,0.54678504]
[1739920910554,0.0001702,95699.0,95694.0,0.156749]
[1739920910741,0.00166455,95698.0,95693.0,0.69653604]
[1739920910877,0.00166455,95698.0,95693.0,0.70353604]
[1739920911074,0.00166455,95698.0,95693.0,0.54678504]
[1739920911297,0.00166455,95698.0,95694.0,0.156748]
[1739920912221,0.0001702,95699.0,95694.0,0.156748]
[1739920912630,0.00166455,95698.0,95694.0,0.156748]
[1739920914204,0.00166455,95698.0,95694.0,0.163748]
[1739920915226,0.00166455,95698.0,95694.0,0.007]
[1739920915401,0.00166455,95698.0,95694.0,0.163748]
[1739920916402,0.00166455,95698.0,95694.0,0.007]
[1739920916745,0.00166455,95698.0,95694.0,0.3316]
[1739920917089,0.00166448,95697.0,95694.0,0.488349]
[1739920917342,0.0001702,95699.0,95694.0,0.3316]
[1739920917556,0.00166456,95698.0,95694.0,0.3316]
[1739920917763,0.0001702,95699.0,95694.0,0.3316]
[1739920917968,0.00166456,95698.0,95694.0,0.3246]
[1739920918169,0.00166456,95698.0,95694.0,0.3316]
[1739920919478,0.00166456,95698.0,95694.0,0.3246]
[1739920919807,0.00166456,95698.0,95694.0,0.3316]
[1739920920019,0.00166456,95698.0,95694.0,0.3246]
[1739920920426,0.00166456,95698.0,95694.0,0.3316]
[1739920920627,0.0001702,95699.0,95694.0,0.3316]
[1739920921058,0.00166456,95698.0,95694.0,0.3316]
[1739920921892,0.15840756,95698.0,95694.0,0.3316]
[1739920922211,0.1569112,95699.0,95694.0,0.3316]
[1739920922539,0.00166456,95698.0,95694.0,0.3246]
[1739920922962,0.156748,95695.0,95694.0,0.3316]
[1739920923186,0.15841233,95695.0,95694.0,0.3316]
[1739920923598,0.15841233,95695.0,95694.0,0.3246]
[1739920924001,0.15841233,95695.0,95694.0,0.3316]
[1739920924204,0.15841233,95695.0,95694.0,0.3246]
[1739920924586,0.15841233,95695.0,95694.0,0.3316]
[1739920925292,0.00166433,95695.0,95694.0,0.3316]
[1739920925494,0.15841233,95695.0,95694.0,0.3316]
[1739920927308,0.00166433,95695.0,95694.0,0.3316]
[1739920927552,0.208993,95697.0,95694.0,0.3316]
[1739920927776,0.00166437,95696.0,95694.0,0.3316]
[1739920928484,0.0001702,95699.0,95694.0,0.3316]
[1739920928691,0.00166429,95695.0,95694.0,0.3316]
[1739920928909,0.0001702,95699.0,95694.0,0.3246]
[1739920929106,0.00166429,95695.0,95694.0,0.3316]
[1739920929312,0.0001702,95699.0,95694.0,0.3316]
[1739920929523,0.00166429,95695.0,95694.0,0.3316]
[1739920929736,0.0001702,95699.0,95695.0,0.1265]
[1739920931053,0.0001702,95699.0,95696.0,0.156744]
[1739920932237,0.0001702,95699.0,95695.0,0.1265]
[1739920932681,0.0001702,95699.0,95696.0,0.007]
[1739920933436,0.0001702,95699.0,95695.0,0.1265]
[1739920933867,0.01826422,95728.0,95695.0,0.290247]
[1739920934071,0.01826422,95728.0,95696.0,0.3246]
[1739920934272,0.01826422,95728.0,95697.0,0.0799]
[1739920934444,0.00796472,95717.0,95697.0,0.0799]
[1739920934652,0.00796472,95717.0,95697.0,0.236644]
[1739920934832,0.00796472,95717.0,95697.0,0.0799]
[1739920935721,0.00796472,95717.0,95698.0,0.156742]
[1739920935926,0.0001702,95705.0,95699.0,0.0798]
[1739920936042,0.0001702,95705.0,95699.0,0.4044]
[1739920937143,0.0001702,95705.0,95699.0,0.4114]
[1739920939454,0.0001702,95705.0,95699.0,0.568141]
[1739920939665,0.0001702,95705.0,95700.0,0.156739]
[1739920939869,0.0001702,95705.0,95699.0,0.4114]
[1739920940301,0.0001702,95705.0,95700.0,0.156739]
[1739920940505,0.0001702,95705.0,95701.0,0.0478]
[1739920940708,0.0001702,95705.0,95703.0,0.156734]
[1739920940913,0.0001702,95705.0,95704.0,0.0995]
[1739920942383,0.0001702,95705.0,95704.0,0.256233]
[1739920943989,0.0001702,95705.0,95704.0,0.263233]
[1739920945823,0.0001702,95705.0,95704.0,0.256233]
[1739920945971,0.0001702,95705.0,95704.0,0.263233]
[1739920946176,0.0001702,95705.0,95704.0,0.256233]
[1739920946589,0.0001702,95705.0,95704.0,0.263233]
[1739920947169,0.0001702,95705.0,95704.0,0.270233]
[1739920947415,0.0001702,95705.0,95704.0,0.256233]
[1739920947811,0.0001702,95705.0,95704.0,0.263233]
[1739920947986,0.0001702,95705.0,95704.0,0.311733]
[1739920949026,0.0001702,95705.0,95704.0,0.304733]
[1739920949235,0.0001702,95705.0,95704.0,0.311733]
[1739920949638,0.0001702,95705.0,95704.0,0.304733]
[1739920949854,0.0001702,95705.0,95704.0,0.311733]
[1739920952206,0.0001702,95705.0,95704.0,0.636333]
[1739920957496,0.15,95757.0,95716.0,0.02]
[1739920957714,0.09779289,95756.0,95716.0,0.02]
[1739920957923,0.04199107,95756.0,95716.0,0.02]
[1739920958258,0.00804648,95732.0,95716.0,0.02]
[1739920958891,0.00130253,95731.0,95716.0,0.02]
[1739920959078,0.00130253,95731.0,95717.0,0.0452]
[1739920959305,0.03949646,95752.0,95723.0,0.02]
[1739920959513,0.001,95756.0,95725.0,0.0786]
[1739920959715,0.00130515,95751.0,95728.0,0.02]
[1739920959924,0.001,95756.0,95728.0,0.02]
[1739920960103,0.05724,95755.0,95730.0,0.0473]
[1739920960426,0.0004,95769.0,95730.0,0.0673]
[1739920960602,0.00013152,95755.0,95732.0,0.1014]
[1739920962099,0.00774479,95753.0,95740.0,0.02]
[1739920962277,0.00013152,95755.0,95741.0,0.0807]
[1739920962485,0.00130699,95752.0,95741.0,0.0807]
[1739920962822,0.00013152,95755.0,95741.0,0.0807]
[1739920963030,0.00130715,95754.0,95741.0,0.0807]
[1739920963355,0.00013152,95755.0,95741.0,0.0807]
[1739920963829,0.00130715,95754.0,95741.0,0.0877]
[1739920964065,0.00013152,95755.0,95741.0,0.0877]
[1739920964296,0.00013152,95755.0,95742.0,0.02]
[1739920964494,0.00130699,95754.0,95743.0,0.0668]
[1739920964897,0.00013152,95755.0,95743.0,0.0668]
[1739920965242,0.00130699,95754.0,95743.0,0.0668]
[1739920965442,0.00013152,95755.0,95743.0,0.0668]
[1739920965638,0.00130699,95754.0,95743.0,0.0668]
[1739920965884,0.00013152,95755.0,95743.0,0.0728]
[1739920966289,0.00130797,95754.0,95743.0,0.026]
[1739920966494,0.00130797,95754.0,95743.0,0.006]
[1739920966822,0.00130843,95753.0,95738.0,0.0497]
[1739920967014,0.00013152,95755.0,95743.0,0.005]
[1739920967255,0.00130851,95754.0,95743.0,0.005]
[1739920967742,0.00013152,95755.0,95743.0,0.005]
[1739920968068,0.00130833,95754.0,95743.0,0.005]
[1739920968491,0.00013152,95755.0,95743.0,0.005]
[1739920968809,0.00130833,95754.0,95743.0,0.005]
[1739920969037,0.00013152,95755.0,95743.0,0.005]
[1739920969235,0.00013152,95755.0,95738.0,0.0497]
[1739920969518,0.00013152,95755.0,95743.0,0.005]
[1739920969858,0.00130833,95754.0,95738.0,0.0497]
[1739920970059,0.00130833,95754.0,95743.0,0.004]
[1739920970263,0.00013152,95755.0,95743.0,0.004]
[1739920970486,0.00013152,95755.0,95738.0,0.0497]
[1739920970729,0.00130833,95754.0,95743.0,0.004]
[1739920970905,0.00013152,95755.0,95743.0,0.004]
[1739920971113,0.00013152,95755.0,95738.0,0.0497]
[1739920971314,0.00130833,95754.0,95738.0,0.0497]
[1739920971555,0.00013152,95755.0,95743.0,0.005]
[1739920971910,0.00130833,95754.0,95743.0,0.005]
[1739920972112,0.15,95770.0,95743.0,0.005]
[1739920972450,0.00043816,95759.0,95743.0,0.005]
[1739920973055,0.00043816,95759.0,95738.0,0.0497]
[1739920973267,0.0001702,95755.0,95743.0,0.005]
[1739920973468,0.00789863,95750.0,95743.0,0.005]
[1739920973833,0.00789863,95750.0,95743.0,0.008]
[1739920974039,0.00789863,95750.0,95738.0,0.0497]
[1739920974444,0.00789863,95750.0,95743.0,0.005]
[1739920974681,0.00789863,95750.0,95738.0,0.0497]
[1739920976636,0.00789863,95750.0,95738.0,0.0557]
[1739920980178,0.00789863,95750.0,95738.0,0.0497]
[1739920980737,0.00789863,95750.0,95738.0,0.0537]
[1739920980920,0.00789863,95750.0,95738.0,0.0497]
[1739920981121,0.00789863,95750.0,95738.0,0.0557]
[1739920982462,0.00789863,95750.0,95738.0,0.0497]
[1739920983804,0.00789863,95750.0,95738.0,0.0557]
[1739920984976,0.00789863,95750.0,95738.0,0.0560402]
[1739920987055,0.00789863,95750.0,95739.0,0.0822]
[1739920987606,0.00789863,95750.0,95740.0,0.1022]
[1739920987808,0.00789863,95750.0,95740.0,0.4268]
[1739920988092,0.00789863,95750.0,95741.0,0.0822]
[1739920988476,0.14984202,95778.0,95743.0,0.0822]
[1739920988706,0.16482622,95778.0,95743.0,0.0822]
[1739920988907,0.02124814,95766.0,95743.0,0.0822]
[1739920990153,0.031405,95779.0,95743.0,0.0822]
[1739920990558,0.02059042,95767.0,95743.0,0.0822]
[1739920990758,0.02059042,95767.0,95744.0,0.0488]
[1739920990975,0.02059042,95767.0,95745.0,0.0822]
[1739920991981,0.00621261,95788.0,95745.0,0.0822]
[1739920992206,0.001,95779.0,95745.0,0.0822]
[1739920992541,0.02125782,95767.0,95745.0,0.0822]